bitfinex/quotes_BTCUSD_20241001
["timestamp","ask_amount","ask_price","bid_price","bid_amount"]
[1727813275156,0.24056967,61435.0,61434.0,0.195331]
[1727813275363,0.24056967,61450.0,61441.0,0.195309]
[1727813275806,0.24056967,61450.0,61439.0,0.52126632]
[1727813276009,0.24056967,61450.0,61449.0,0.195283]
[1727813276227,0.392032,61478.0,61454.0,0.01]
[1727813276228,0.24056967,61468.0,61454.0,0.01]
[1727813276526,0.24056967,61468.0,61459.0,0.200252]
[1727813276527,0.14056967,61460.0,61459.0,0.200252]
[1727813276749,0.24056967,61468.0,61467.0,0.195226]
[1727813277262,0.24221567,61475.0,61467.0,0.195226]
[1727813277263,0.001646,61475.0,61474.0,0.195204]
[1727813278944,0.001646,61475.0,61457.0,0.001]
[1727813279149,0.1564578,61474.0,61460.0,0.24056967]
[1727813279354,0.3516628,61474.0,61467.0,0.24056967]
[1727813279602,0.3516628,61474.0,61460.0,0.63106567]
[1727813279603,0.1564578,61474.0,61465.0,0.195232]
[1727813279812,0.1564578,61474.0,61465.0,0.195231]
[1727813280026,0.1564578,61474.0,61460.0,0.63106567]
[1727813280287,0.1564578,61474.0,61432.0,0.390673]
[1727813280288,0.20627555,61474.0,61461.0,0.24056967]
[1727813280499,0.195221,61469.0,61461.0,0.24056967]
[1727813280717,0.1564578,61468.0,61461.0,0.24056967]
[1727813280930,0.3516828,61468.0,61457.0,0.195258]
[1727813281359,0.0469159,61464.0,61454.0,0.390532]
[1727813281575,0.0469159,61464.0,61460.0,0.195248]
[1727813281576,0.20368182,61464.0,61460.0,0.195248]
[1727813281788,0.20368182,61464.0,61443.0,0.005]
[1727813281789,0.20368182,61464.0,61457.0,0.195257]
[1727813282037,0.28905281,61469.0,61446.0,0.390585]
[1727813282038,0.44425149,61463.0,61446.0,0.390585]
[1727813282310,0.44425149,61463.0,61439.0,0.0797]
[1727813282311,0.07037385,61457.0,61455.0,0.24056967]
[1727813282551,0.07037385,61456.0,61455.0,0.195264]
[1727813282828,0.07037385,61456.0,61447.0,0.39058]
[1727813282829,0.07037385,61457.0,61456.0,0.195261]
[1727813283057,0.1564578,61463.0,61457.0,0.195258]
[1727813283058,0.04736917,61458.0,61457.0,0.195258]
[1727813283363,0.06670163,61458.0,61457.0,0.195258]
[1727813283575,0.09383181,61463.0,61462.0,0.195242]
[1727813283805,0.31569045,61463.0,61462.0,0.195242]
[1727813284076,0.31569045,61463.0,61460.0,0.390496]
[1727813284367,0.15834118,61471.0,61460.0,0.390496]
[1727813284368,0.15834118,61471.0,61460.0,0.52126632]
[1727813284634,0.001646,61475.0,61474.0,0.195204]
[1727813284635,0.24221567,61475.0,61474.0,0.195204]
[1727813284845,0.17364071,61475.0,61474.0,0.195204]
[1727813285088,0.05493642,61475.0,61474.0,0.195204]
[1727813285315,0.05493642,61475.0,61474.0,0.19845698]
[1727813285316,0.11870429,61475.0,61474.0,0.19845698]
[1727813285535,0.24056967,61494.0,61476.0,0.005]
[1727813285749,0.24056967,61494.0,61477.0,0.87291812]
[1727813285993,0.1753916,61478.0,61477.0,0.87791812]
[1727813286204,0.05659841,61478.0,61477.0,0.87791812]
[1727813287311,0.05659841,61478.0,61477.0,0.87991812]
[1727813287546,0.39891085,61493.0,61492.0,0.195147]
[1727813287794,0.29428164,61493.0,61492.0,0.195147]
[1727813288068,0.05371197,61493.0,61492.0,0.3516048]
[1727813288304,0.15834118,61500.0,61494.0,0.005]
[1727813288568,0.24221567,61512.0,61492.0,0.2564578]
[1727813288569,0.05329127,61499.0,61498.0,0.195128]
[1727813288813,0.05329127,61499.0,61498.0,0.390252]
[1727813289049,0.05329127,61502.0,61495.0,0.1564578]
[1727813289288,0.05329127,61501.0,61497.0,0.195129]
[1727813289514,0.05329127,61500.0,61496.0,0.195134]
[1727813289840,0.05329127,61499.0,61498.0,0.195128]
[1727813290094,0.05329127,61504.0,61503.0,0.195112]
[1727813290382,0.001646,61507.0,61494.0,0.24056967]
[1727813290383,0.05329802,61506.0,61505.0,0.195106]
[1727813290641,0.05329802,61506.0,61501.0,0.24056967]
[1727813290642,0.05330469,61506.0,61502.0,0.63080067]
[1727813290947,0.1960407,61506.0,61505.0,0.195106]
[1727813291125,0.19602996,61506.0,61505.0,0.3515638]
[1727813291382,0.05330469,61506.0,61505.0,0.3515638]
[1727813291605,0.05330469,61506.0,61505.0,0.195106]
[1727813291857,0.05330469,61506.0,61504.0,0.33105714]
[1727813292118,0.05330469,61506.0,61505.0,0.3515638]
[1727813292389,0.17227712,61506.0,61505.0,0.3515638]
[1727813292611,0.001646,61507.0,61506.0,0.300102]
[1727813292840,0.001646,61507.0,61506.0,0.4565598]
[1727813293060,0.07303046,61507.0,61506.0,0.4565598]
[1727813293282,0.001646,61507.0,61506.0,0.69912947]
[1727813293492,0.001646,61507.0,61506.0,1.25450547]
[1727813293709,0.001646,61507.0,61506.0,1.25950547]
[1727813293933,0.09518092,61523.0,61506.0,1.25950547]
[1727813293934,0.3595421,61533.0,61529.0,0.005]
[1727813294159,0.24056967,61533.0,61532.0,0.82628632]
[1727813294371,0.001646,61536.0,61535.0,0.19501]
[1727813295305,0.001646,61536.0,61535.0,0.3514678]
[1727813295526,0.001646,61536.0,61535.0,0.4614678]
[1727813295751,0.001644,61546.0,61535.0,0.4614678]
[1727813295752,0.24221367,61546.0,61545.0,0.194979]
[1727813295972,0.24221367,61546.0,61538.0,0.584999]
[1727813295973,0.001644,61546.0,61538.0,0.584999]
[1727813296208,0.001644,61546.0,61540.0,0.24056967]
[1727813296209,0.11897243,61545.0,61540.0,0.24056967]
[1727813296423,0.001644,61546.0,61545.0,0.194979]
[1727813296859,0.001644,61546.0,61545.0,0.3514368]
[1727813296860,0.12061643,61546.0,61545.0,0.3514368]
[1727813297078,0.12061643,61546.0,61545.0,0.34272558]
[1727813297079,0.001644,61546.0,61545.0,0.34272558]
[1727813297506,0.12037543,61546.0,61545.0,0.34272558]
[1727813297715,0.12037543,61546.0,61545.0,0.194979]
[1727813297949,0.001644,61546.0,61545.0,0.194979]
[1727813298174,0.11873143,61553.0,61550.0,0.005]
[1727813298404,0.001646,61568.0,61556.0,0.389882]
[1727813298405,0.11873143,61559.0,61556.0,0.389882]
[1727813298714,0.11873143,61561.0,61560.0,0.194931]
[1727813298904,0.11873143,61562.0,61561.0,0.194928]
[1727813299150,0.1186566,61566.0,61564.0,0.389832]
[1727813299387,0.001646,61568.0,61567.0,0.194909]
[1727813299626,0.001646,61568.0,61567.0,0.3513668]
[1727813299844,0.001646,61568.0,61567.0,0.3523668]
[1727813300059,0.001646,61568.0,61567.0,0.3533668]
[1727813300266,0.14272527,61587.0,61567.0,0.3533668]
[1727813300267,0.11856399,61580.0,61577.0,0.91101532]
[1727813300505,0.11846139,61583.0,61579.0,0.389737]
[1727813300724,0.11846139,61587.0,61585.0,0.194852]
[1727813300935,0.21655206,61586.0,61577.0,0.1564578]
[1727813301148,0.11846139,61592.0,61581.0,0.24056967]
[1727813301365,0.21263068,61591.0,61585.0,0.194851]
[1727813301578,0.1564578,61596.0,61585.0,0.194851]
[1727813301579,0.21263068,61590.0,61585.0,0.194851]
[1727813301810,0.21263068,61590.0,61582.0,0.389718]
[1727813301811,0.21247966,61589.0,61584.0,0.194854]
[1727813302039,0.21247966,61589.0,61581.0,0.24056967]
[1727813302040,0.09468069,61597.0,61585.0,0.67772412]
[1727813302273,0.001644,61598.0,61597.0,0.194814]
[1727813302508,0.001644,61598.0,61591.0,0.52126632]
[1727813302509,0.001644,61598.0,61594.0,0.194821]
[1727813302737,0.001644,61598.0,61595.0,0.19482]
[1727813302956,0.001644,61598.0,61594.0,0.1564578]
[1727813303184,0.001644,61598.0,61595.0,0.194818]
[1727813303407,0.001644,61598.0,61596.0,0.24056967]
[1727813303626,0.001644,61598.0,61597.0,0.194814]
[1727813303859,0.001644,61598.0,61597.0,0.91454924]
[1727813304071,0.001644,61598.0,61597.0,1.01454924]
[1727813304512,0.015906,61605.0,61604.0,0.194792]
[1727813304732,0.015906,61605.0,61604.0,0.91636057]
[1727813305207,0.04888545,61623.0,61606.0,0.38957]
[1727813305208,0.43530967,61621.0,61606.0,0.38957]
[1727813305460,0.0198085,61605.0,61604.0,0.23963645]
[1727813305704,0.00155463,61621.0,61607.0,0.02403595]
[1727813305927,0.00155463,61621.0,61604.0,0.52126632]
[1727813306180,0.00155463,61621.0,61609.0,0.194776]
[1727813306432,0.00155463,61621.0,61607.0,0.194781]
[1727813306433,0.194745,61619.0,61607.0,0.194781]
[1727813306644,0.00155463,61621.0,61604.0,0.52126632]
[1727813306645,0.00848263,61620.0,61604.0,0.52126632]
[1727813306877,0.00848263,61620.0,61588.0,0.24056967]
[1727813306878,0.00155463,61607.0,61588.0,0.24056967]
[1727813307101,0.19634063,61606.0,61605.0,0.24056967]
[1727813307324,0.00155463,61595.0,61588.0,0.24056967]
[1727813307541,0.00155463,61593.0,61588.0,0.24056967]
[1727813307970,0.389613,61600.0,61588.0,0.43540967]
[1727813307971,0.194809,61599.0,61588.0,0.43540967]
[1727813308225,0.00155463,61600.0,61588.0,0.43540967]
[1727813308226,0.194812,61598.0,61589.0,0.00323575]
[1727813308426,0.194812,61598.0,61590.0,0.24056967]
[1727813308427,0.389647,61595.0,61590.0,0.24056967]
[1727813308634,0.00155463,61589.0,61583.0,0.24056967]
[1727813308847,0.00155463,61593.0,61583.0,0.43542767]
[1727813309067,0.00161205,61592.0,61583.0,0.43542767]
[1727813309329,0.00155463,61594.0,61584.0,0.194854]
[1727813309597,0.00155463,61594.0,61583.0,0.39702747]
[1727813309598,0.00893001,61591.0,61583.0,0.39702747]
[1727813309842,0.1223,61590.0,61566.0,0.24056967]
[1727813310080,0.195014,61534.0,61533.0,0.15262]
[1727813310292,0.06,61543.0,61529.0,0.97419994]
[1727813310293,0.195005,61537.0,61529.0,0.97419994]
[1727813310515,0.01,61543.0,61531.0,0.05761275]
[1727813310516,0.00597352,61536.0,61531.0,0.05761275]
[1727813310737,0.00597352,61536.0,61532.0,0.00325001]
[1727813310957,0.194976,61546.0,61533.0,0.05603218]
[1727813311189,0.52126632,61540.0,61533.0,0.05603218]
[1727813311467,0.52126632,61540.0,61517.0,0.005]
[1727813311468,0.53126632,61534.0,61526.0,0.97419994]
[1727813311683,0.005,61535.0,61533.0,0.97419994]
[1727813311898,0.005,61535.0,61532.0,0.05949468]
[1727813312109,0.00155463,61536.0,61526.0,0.97419994]
[1727813312320,0.005,61535.0,61527.0,0.00325007]
[1727813312972,0.005,61535.0,61526.0,0.97419994]
[1727813313186,0.01155463,61547.0,61533.0,0.97419994]
[1727813313411,0.01155463,61547.0,61527.0,0.1564578]
[1727813313412,0.005,61545.0,61528.0,0.1]
[1727813313626,0.005,61545.0,61533.0,0.97419994]
[1727813313825,0.006634,61545.0,61533.0,0.97419994]
[1727813314077,0.00818863,61545.0,61533.0,0.97419994]
[1727813314291,0.006634,61545.0,61533.0,0.97419994]
[1727813314716,0.001634,61545.0,61529.0,0.1572748]
[1727813314934,0.196613,61545.0,61529.0,0.1572748]
[1727813315150,0.196613,61545.0,61529.0,0.000817]
[1727813315151,0.72292632,61530.0,61529.0,0.000817]
[1727813316445,0.72448095,61530.0,61529.0,0.000817]
[1727813316865,0.72448095,61530.0,61517.0,0.24375579]
[1727813316866,0.19661863,61518.0,61517.0,0.24375579]
[1727813317073,0.20325263,61518.0,61517.0,0.24375579]
[1727813317316,0.006634,61518.0,61517.0,0.24375579]
[1727813317987,0.006634,61518.0,61505.0,0.05863269]
[1727813318198,0.005,61516.0,61505.0,0.05863269]
[1727813318408,0.005,61516.0,61501.0,0.24375579]
[1727813318650,0.00818863,61519.0,61515.0,0.24375579]
[1727813318873,0.00818863,61519.0,61509.0,0.00092132]
[1727813318874,0.001634,61516.0,61509.0,0.05863269]
[1727813319086,0.001634,61516.0,61501.0,0.24375579]
[1727813319324,0.195082,61513.0,61510.0,0.24375579]
[1727813319557,0.195082,61513.0,61501.0,0.24375579]
[1727813319784,0.001634,61516.0,61502.0,0.24375579]
[1727813319785,0.006634,61509.0,61502.0,0.24375579]
[1727813319983,0.195112,61503.0,61502.0,0.24375579]
[1727813320248,0.005,61505.0,61502.0,0.24375579]
[1727813320720,0.001634,61506.0,61503.0,0.00325176]
[1727813320935,0.001634,61512.0,61504.0,0.00325128]
[1727813321158,0.001634,61509.0,61492.0,0.05650346]
[1727813321390,0.005,61513.0,61502.0,0.24375579]
[1727813321391,0.001634,61512.0,61502.0,0.24375579]
[1727813321599,0.001634,61512.0,61493.0,0.1564578]
[1727813321600,0.001634,61512.0,61503.0,0.00325127]
[1727813321827,0.001634,61517.0,61504.0,0.24375579]
[1727813322042,0.005,61519.0,61505.0,0.00325096]
[1727813322043,0.001634,61518.0,61505.0,0.00325096]
[1727813322253,0.005,61519.0,61504.0,0.1564578]
[1727813322254,0.001634,61515.0,61506.0,0.24375579]
[1727813322480,0.001634,61516.0,61506.0,0.24375579]
[1727813322690,0.001634,61517.0,61509.0,0.0097]
[1727813322898,0.001634,61515.0,61509.0,0.0097]
[1727813323513,0.001634,61516.0,61509.0,0.0097]
[1727813323739,0.001634,61518.0,61509.0,0.0097]
[1727813323954,0.00818863,61522.0,61510.0,0.00325096]
[1727813324162,0.001634,61522.0,61510.0,0.00325096]
[1727813324581,0.001634,61522.0,61513.0,0.24375579]
[1727813325441,0.52126632,61541.0,61509.0,0.0097]
[1727813325442,0.001634,61519.0,61514.0,0.24375579]
[1727813325655,0.1564578,61518.0,61514.0,0.24375579]
[1727813326302,0.001634,61519.0,61514.0,0.24375579]
[1727813326524,0.001634,61520.0,61509.0,0.0097]
[1727813326742,0.001634,61520.0,61514.0,0.24375579]
[1727813327613,0.00155463,61522.0,61514.0,0.24375579]
[1727813327825,0.001634,61523.0,61514.0,0.24375579]
[1727813327826,0.001634,61525.0,61515.0,0.00117569]
[1727813328064,0.001634,61525.0,61510.0,0.195088]
[1727813328274,0.001634,61525.0,61514.0,0.24375579]
[1727813329428,0.001634,61519.0,61509.0,0.0097]
[1727813329666,0.00155463,61516.0,61515.0,0.24375579]
[1727813329906,0.00155463,61515.0,61509.0,0.0097]
[1727813330138,0.195077,61514.0,61509.0,0.0097]
[1727813330365,0.00155463,61513.0,61509.0,0.0097]
[1727813330586,0.00318863,61515.0,61509.0,0.0097]
[1727813331059,0.196724,61510.0,61509.0,0.0097]
[1727813331280,0.3531818,61510.0,61509.0,0.0097]
[1727813332350,0.35473643,61510.0,61509.0,0.0097]
[1727813340330,0.35473643,61510.0,61509.0,0.010518]
[1727813341019,0.390169,61512.0,61509.0,0.010518]
[1727813341020,0.001634,61512.0,61509.0,0.010518]
[1727813341238,0.3531818,61510.0,61509.0,0.010518]
[1727813341455,0.87600275,61510.0,61509.0,0.010518]
[1727813343648,0.35473643,61510.0,61509.0,0.010518]
[1727813345191,0.3531818,61510.0,61509.0,0.010518]
[1727813345612,0.35473643,61510.0,61509.0,0.010518]
[1727813345843,0.50725887,61510.0,61509.0,0.010518]
[1727813346073,0.35473643,61510.0,61509.0,0.010518]
[1727813347366,0.001634,61515.0,61509.0,0.010518]
[1727813347591,0.39168063,61519.0,61509.0,0.010518]
[1727813347592,0.001634,61514.0,61509.0,0.010518]
[1727813347813,0.001634,61519.0,61510.0,0.24375579]
[1727813348043,0.001634,61521.0,61510.0,0.43884479]
[1727813348265,0.196688,61522.0,61517.0,0.24375579]
[1727813348266,0.001636,61522.0,61517.0,0.24375579]
[1727813348501,0.001636,61522.0,61511.0,0.1564578]
[1727813348731,0.001636,61522.0,61513.0,0.390159]
[1727813348945,0.001636,61522.0,61513.0,0.195079]
[1727813349166,0.001636,61522.0,61514.0,0.185075]
[1727813349390,0.001636,61522.0,61473.0,0.000821]
[1727813349391,0.005,61502.0,61473.0,0.000821]
[1727813349627,0.195204,61474.0,61473.0,0.000821]
[1727813349836,0.195204,61474.0,61457.0,0.000818]
[1727813349837,0.001634,61472.0,61457.0,0.000818]
[1727813350067,0.52126632,61475.0,61458.0,0.00325366]
[1727813350068,0.001634,61473.0,61458.0,0.00325366]
[1727813350295,0.001634,61472.0,61458.0,0.00325366]
[1727813350509,0.001634,61472.0,61452.0,0.01180696]
[1727813350725,0.52126632,61475.0,61453.0,0.05645007]
[1727813350726,0.001634,61475.0,61453.0,0.05645007]
[1727813350938,0.001634,61475.0,61453.0,0.05947466]
[1727813351379,0.00325369,61478.0,61453.0,0.05947466]
[1727813351380,0.001634,61473.0,61453.0,0.04992003]
[1727813351615,0.001634,61473.0,61453.0,0.04947466]
[1727813351844,0.52126632,61481.0,61453.0,0.04947466]
[1727813351845,0.001634,61475.0,61453.0,0.04947466]
[1727813352075,0.001634,61475.0,61453.0,0.04992003]
[1727813352337,0.001634,61482.0,61459.0,0.00044537]
[1727813352549,0.001634,61482.0,61462.0,0.00044537]
[1727813352769,0.001634,61484.0,61463.0,0.00369834]
[1727813352986,0.001634,61486.0,61464.0,0.0757]
[1727813353209,0.15801243,61485.0,61467.0,0.9753243]
[1727813353413,0.15801243,61485.0,61468.0,0.0032527]
[1727813354255,0.001634,61484.0,61468.0,0.1597105]
[1727813354473,0.001634,61487.0,61481.0,0.24399766]
[1727813354685,0.52126632,61496.0,61479.0,0.1494]
[1727813354686,0.24399766,61486.0,61482.0,0.00325242]
[1727813354918,0.001634,61493.0,61479.0,0.1494]
[1727813355357,0.001634,61493.0,61480.0,0.24399766]
[1727813355772,0.196779,61493.0,61480.0,0.24399766]
[1727813355998,0.001634,61493.0,61480.0,0.24399766]
[1727813356680,0.196778,61493.0,61480.0,0.24399766]
[1727813356885,0.39183263,61495.0,61480.0,0.24399766]
[1727813356886,0.001634,61491.0,61480.0,0.24399766]
[1727813358589,0.00318863,61491.0,61480.0,0.24399766]
[1727813358795,0.195163,61487.0,61481.0,0.24399766]
[1727813359008,0.001634,61490.0,61481.0,0.24399766]
[1727813359213,0.195157,61489.0,61481.0,0.24399766]
[1727813359771,0.195161,61488.0,61481.0,0.24399766]
[1727813360048,0.001634,61490.0,61481.0,0.24399766]
[1727813360265,0.195158,61489.0,61481.0,0.24399766]
[1727813360799,0.001634,61490.0,61481.0,0.24399766]
[1727813361230,0.195164,61487.0,61481.0,0.24399766]
[1727813361968,0.195167,61486.0,61481.0,0.24399766]
[1727813362177,0.195168,61486.0,61479.0,0.1494]
[1727813362585,0.195164,61487.0,61479.0,0.1494]
[1727813362815,0.001634,61489.0,61479.0,0.1494]
[1727813362816,0.19517,61485.0,61479.0,0.1494]
[1727813363037,0.390328,61487.0,61479.0,0.1494]
[1727813363459,0.19517,61485.0,61479.0,0.1494]
[1727813363669,0.195173,61484.0,61479.0,0.1494]
[1727813363937,0.001634,61489.0,61482.0,0.24399766]
[1727813364157,0.001634,61504.0,61484.0,0.1]
[1727813364369,0.24399766,61499.0,61493.0,0.195143]
[1727813364586,0.001634,61504.0,61491.0,0.390297]
[1727813364587,0.001634,61504.0,61494.0,0.19838991]
[1727813364796,0.00155463,61509.0,61494.0,0.19838991]
[1727813364797,0.001634,61505.0,61494.0,0.00325191]
[1727813365007,0.001634,61505.0,61498.0,0.195127]
[1727813365264,0.00318863,61511.0,61501.0,0.195118]
[1727813365473,0.19827563,61511.0,61502.0,0.00325124]
[1727813365688,0.24399766,61518.0,61484.0,0.0098985]
[1727813365689,0.001634,61505.0,61484.0,0.0098985]
[1727813365905,0.001634,61504.0,61497.0,0.24399766]
[1727813366118,0.196743,61504.0,61497.0,0.24399766]
[1727813366351,0.001634,61504.0,61497.0,0.24399766]
[1727813366605,0.196743,61504.0,61497.0,0.24399766]
[1727813366839,0.001634,61504.0,61497.0,0.24399766]
[1727813367080,0.001634,61505.0,61497.0,0.24399766]
[1727813367300,0.00318863,61509.0,61497.0,0.24399766]
[1727813367524,0.00155463,61511.0,61498.0,0.00325174]
[1727813367777,0.001634,61512.0,61504.0,0.195107]
[1727813367997,0.001634,61512.0,61502.0,0.390228]
[1727813367998,0.001634,61460.0,61447.0,0.000821]
[1727813368238,0.51,61487.0,61447.0,0.000821]
[1727813368239,0.001634,61464.0,61454.0,3.479905]
[1727813369590,0.001634,61464.0,61455.0,0.1507]
[1727813369800,0.001634,61464.0,61456.0,2.788694]
[1727813371532,0.003634,61456.0,61447.0,0.000821]
[1727813371806,0.195268,61454.0,61447.0,0.000821]
[1727813372042,0.3517258,61454.0,61447.0,0.000821]
[1727813372261,0.3537258,61454.0,61447.0,0.000821]
[1727813372475,0.3553598,61454.0,61447.0,0.000821]
[1727813372894,0.3553598,61454.0,61447.0,0.24490799]
[1727813374167,0.3553598,61454.0,61447.0,0.000821]
[1727813374390,0.3553598,61454.0,61448.0,0.24408699]
[1727813374838,0.3553598,61454.0,61447.0,0.000821]
[1727813374839,0.198921,61448.0,61447.0,0.000821]
[1727813375067,0.3594481,61448.0,61447.0,0.000821]
[1727813375313,0.3553788,61448.0,61447.0,0.000821]
[1727813375564,0.51182558,61448.0,61447.0,0.000821]
[1727813375986,0.3553788,61448.0,61447.0,0.000821]
[1727813376909,0.4553788,61448.0,61447.0,0.000821]
[1727813377134,0.4553788,61448.0,61445.0,0.0150409]
[1727813377135,0.198927,61446.0,61445.0,0.0150409]
[1727813377406,0.198927,61446.0,61404.0,0.03091507]
[1727813377407,0.196994,61425.0,61406.0,0.1553]
[1727813377632,0.7243307,61425.0,61406.0,0.1553]
[1727813377860,0.72026032,61425.0,61406.0,0.1553]
[1727813378075,0.390783,61416.0,61406.0,0.1553]
[1727813378306,0.195386,61417.0,61406.0,0.1553]
[1727813378534,0.00407071,61416.0,61406.0,0.1553]
[1727813378754,0.1580918,61417.0,61406.0,0.1553]
[1727813379260,0.16052851,61416.0,61407.0,0.24408699]
[1727813379553,0.195393,61415.0,61407.0,0.24408699]
[1727813379778,0.1564578,61416.0,61407.0,0.24408699]
[1727813380225,0.001634,61426.0,61414.0,0.24408699]
[1727813380460,0.195352,61428.0,61409.0,0.19541]
[1727813380461,0.1621621,61425.0,61409.0,0.19541]
[1727813380678,0.00570431,61427.0,61415.0,0.24408699]
[1727813380896,0.1580918,61426.0,61416.0,0.00325609]
[1727813381113,0.001634,61428.0,61416.0,0.00325609]
[1727813381332,0.001634,61424.0,61415.0,0.24408699]
[1727813381777,0.001634,61426.0,61415.0,0.24408699]
[1727813382006,0.001634,61424.0,61408.0,0.1]
[1727813382233,0.0040702,61423.0,61414.0,0.24408699]
[1727813382467,0.0040702,61423.0,61407.0,0.24408699]
[1727813382468,0.195389,61416.0,61407.0,0.24408699]
[1727813382699,0.52126632,61420.0,61407.0,0.24408699]
[1727813382700,0.197399,61413.0,61407.0,0.24408699]
[1727813382931,0.55131458,61415.0,61407.0,0.24408699]
[1727813382932,0.19946596,61414.0,61407.0,0.24408699]
[1727813383377,0.00407096,61414.0,61407.0,0.24408699]
[1727813383598,0.195399,61413.0,61407.0,0.24408699]
[1727813383815,0.16052876,61413.0,61407.0,0.24408699]
[1727813384032,0.392411,61417.0,61407.0,0.24408699]
[1727813384033,0.001634,61417.0,61407.0,0.24408699]
[1727813384258,0.001634,61417.0,61408.0,0.00318397]
[1727813384688,0.001634,61417.0,61407.0,0.24408699]
[1727813385335,0.19702,61417.0,61407.0,0.24408699]
[1727813385553,0.20109066,61417.0,61407.0,0.24408699]
[1727813385766,0.00770466,61417.0,61407.0,0.24408699]
[1727813385989,0.00570466,61417.0,61407.0,0.24408699]
[1727813386212,0.001634,61417.0,61407.0,0.24408699]
[1727813386436,0.00407067,61418.0,61407.0,0.24408699]
[1727813386437,0.001634,61418.0,61407.0,0.24408699]
[1727813386660,0.001634,61417.0,61407.0,0.24408699]
[1727813386917,0.001634,61428.0,61414.0,0.24408699]
[1727813387321,0.001634,61428.0,61408.0,0.1564578]
[1727813387322,0.001634,61434.0,61415.0,0.15790947]
[1727813387325,0.001634,61437.0,61416.0,0.2461]
[1727813387649,0.001634,61436.0,61422.0,0.390738]
[1727813387861,0.001634,61436.0,61424.0,0.195363]
[1727813388081,0.001634,61435.0,61426.0,0.43944199]
[1727813388307,0.001634,61437.0,61426.0,0.43944199]
[1727813388557,0.00406927,61440.0,61427.0,0.24408699]
[1727813388558,0.001634,61435.0,61427.0,0.24408699]
[1727813389265,0.001634,61435.0,61427.0,0.24358699]
[1727813390800,0.001634,61434.0,61427.0,0.24358699]
[1727813391229,0.001634,61431.0,61428.0,0.24408699]
[1727813391446,0.16216158,61431.0,61428.0,0.24408699]
[1727813391653,0.91192132,61436.0,61428.0,0.24408699]
[1727813391654,0.001634,61433.0,61428.0,0.24408699]
[1727813391842,0.001634,61432.0,61428.0,0.24408699]
[1727813392293,0.001634,61433.0,61428.0,0.24408699]
[1727813392500,0.001634,61433.0,61423.0,0.390728]
[1727813392705,0.001634,61435.0,61426.0,0.24408699]
[1727813392907,0.001634,61437.0,61429.0,0.195346]
[1727813393119,0.001634,61436.0,61430.0,0.195342]
[1727813393544,0.001634,61436.0,61427.0,0.390706]
[1727813393545,0.001634,61436.0,61431.0,0.00324724]
[1727813393745,0.001634,61436.0,61426.0,0.24408699]
[1727813393958,0.001634,61436.0,61427.0,0.195352]
[1727813394152,0.001634,61436.0,61426.0,0.24408699]
[1727813394367,0.001634,61436.0,61426.0,0.21769399]
[1727813394575,0.001634,61433.0,61417.0,0.63485199]
[1727813394781,0.001634,61426.0,61417.0,0.24408699]
[1727813395043,0.1580918,61426.0,61417.0,0.24408699]
[1727813395265,0.00407015,61425.0,61417.0,0.24408699]
[1727813395484,0.19943115,61425.0,61417.0,0.24408699]
[1727813395707,0.001634,61426.0,61415.0,0.000818]
[1727813395950,0.16216195,61424.0,61415.0,0.000818]
[1727813396180,0.195378,61420.0,61416.0,0.24408699]
[1727813396393,0.390733,61423.0,61416.0,0.24408699]
[1727813396605,0.1580918,61424.0,61411.0,0.151418]
[1727813396606,0.195384,61418.0,61411.0,0.151418]
[1727813396817,0.195384,61418.0,61414.0,0.24408699]
[1727813396818,0.195387,61417.0,61414.0,0.24408699]
[1727813397022,0.002,61415.0,61414.0,0.24408699]
[1727813397439,0.195386,61417.0,61414.0,0.24408699]
[1727813397643,0.001634,61418.0,61411.0,0.151418]
[1727813397842,0.195387,61417.0,61411.0,0.151418]
[1727813398258,0.197016,61418.0,61411.0,0.151418]
[1727813398479,0.001634,61428.0,61417.0,0.24408699]
[1727813398713,0.001634,61429.0,61418.0,0.00324964]
[1727813398924,0.001634,61429.0,61416.0,0.63486099]
[1727813399134,0.00406965,61434.0,61412.0,0.1564578]
[1727813399135,0.001634,61428.0,61412.0,0.1564578]
[1727813399354,0.001634,61428.0,61414.0,0.24408699]
[1727813399355,0.195358,61426.0,61414.0,0.24408699]
[1727813399593,0.195358,61426.0,61413.0,0.195397]
[1727813399594,0.19539,61416.0,61412.0,0.24408699]
[1727813399824,0.001634,61418.0,61412.0,0.24408699]
[1727813399825,0.001634,61417.0,61415.0,0.000819]
[1727813400441,0.392406,61417.0,61415.0,0.000819]
[1727813400648,0.195388,61416.0,61415.0,0.000819]
[1727813401489,0.392406,61417.0,61415.0,0.000819]
[1727813401490,0.19702,61417.0,61415.0,0.000819]
[1727813401696,0.001634,61418.0,61415.0,0.000819]
[1727813401903,0.195374,61421.0,61415.0,0.000819]
[1727813401904,0.001634,61417.0,61415.0,0.000819]
[1727813402610,0.001634,61427.0,61416.0,0.24408699]
[1727813402828,0.001634,61431.0,61419.0,0.24408699]
[1727813403045,0.001638,61445.0,61419.0,0.24408699]
[1727813403046,0.001634,61437.0,61420.0,0.1564578]
[1727813403251,0.001634,61437.0,61421.0,0.24408699]
[1727813403463,0.001634,61437.0,61422.0,0.1564578]
[1727813403682,0.1564578,61444.0,61424.0,0.34152367]
[1727813403683,0.001634,61444.0,61424.0,0.34152367]
[1727813403918,0.003272,61445.0,61428.0,0.24408699]
[1727813404128,0.001638,61445.0,61429.0,0.24408699]
[1727813404556,0.001638,61445.0,61436.0,0.24408699]
[1727813404777,0.001638,61445.0,61437.0,0.0244087]
[1727813405229,0.001638,61445.0,61438.0,0.2391578]
[1727813406154,0.001638,61445.0,61443.0,0.24408699]
[1727813406374,0.001638,61445.0,61444.0,0.1564578]
[1727813407407,0.001638,61445.0,61444.0,0.3188578]
[1727813407644,0.001638,61445.0,61444.0,0.34931447]
[1727813407901,0.91150953,61472.0,61444.0,0.34931447]
[1727813407902,0.001634,61468.0,61444.0,0.34931447]
[1727813408125,0.001634,61468.0,61457.0,0.52108553]
[1727813408126,0.24408699,61468.0,61457.0,0.52108553]
[1727813408340,0.24408699,61476.0,61458.0,0.34291945]
[1727813408554,0.24408699,61478.0,61459.0,0.00325326]
[1727813408773,0.001634,61477.0,61460.0,0.43100146]
[1727813408998,0.390367,61481.0,61460.0,0.43100146]
[1727813408999,0.001634,61476.0,61460.0,0.43100146]
[1727813409221,0.001634,61476.0,61458.0,0.1588]